bitfinex/quotes_BTCUSD_20240821
["timestamp","ask_amount","ask_price","bid_price","bid_amount"]
[1724214800191,0.01621871,59519.0,59518.0,0.002]
[1724214800751,0.0177689,59519.0,59518.0,0.002]
[1724214802118,0.01621871,59519.0,59518.0,0.002]
[1724214805833,0.01621833,59519.0,59518.0,0.002]
[1724214806244,0.04259269,59519.0,59518.0,0.025]
[1724214806464,0.04414288,59519.0,59518.0,0.025]
[1724214808212,0.04259269,59519.0,59518.0,0.025]
[1724214808817,0.01621833,59519.0,59518.0,0.025]
[1724214812260,0.04259251,59519.0,59518.0,0.025]
[1724214812486,0.02719618,59519.0,59518.0,0.025]
[1724214812687,0.04259251,59519.0,59518.0,0.025]
[1724214814513,0.04278359,59519.0,59518.0,0.025]
[1724214816241,0.01640941,59519.0,59518.0,0.0259031]
[1724214817146,0.0947596,59519.0,59518.0,0.0259031]
[1724214817307,0.0947596,59519.0,59518.0,0.0029031]
[1724214818128,0.3473861,59519.0,59518.0,0.0029031]
[1724214818433,0.31369598,59519.0,59518.0,0.0029031]
[1724214819190,0.31369598,59519.0,59518.0,0.0019031]
[1724214819402,0.31569598,59519.0,59518.0,0.0019031]
[1724214819815,0.31369598,59519.0,59518.0,0.0019031]
[1724214820016,0.34970305,59519.0,59518.0,0.0009031]
[1724214820241,0.35270305,59519.0,59518.0,0.0009031]
[1724214820792,0.34970305,59519.0,59518.0,0.0009031]
[1724214821615,0.35270305,59519.0,59518.0,0.0009031]
[1724214822038,0.31869598,59519.0,59518.0,0.0009031]
[1724214822248,0.30329965,59519.0,59518.0,0.0009031]
[1724214822458,0.31869917,59519.0,59518.0,0.0111206]
[1724214822664,0.31869917,59519.0,59518.0,0.0009031]
[1724214822871,0.20129917,59519.0,59518.0,0.0009031]
[1724214824636,0.26025096,59519.0,59518.0,0.0009031]
[1724214826116,0.26024957,59519.0,59518.0,0.0009031]
[1724214826683,0.16296246,59519.0,59518.0,0.0009031]
[1724214828921,0.02141227,59519.0,59518.0,0.1474031]
[1724214829121,0.02141227,59519.0,59518.0,0.1704031]
[1724214829914,0.00601308,59519.0,59518.0,0.1704031]
[1724214830309,0.005822,59519.0,59518.0,0.1704031]
[1724214830559,0.02121928,59519.0,59518.0,0.18058522]
[1724214830882,0.01801706,59519.0,59518.0,0.23306454]
[1724214831284,0.01601706,59519.0,59518.0,0.23306454]
[1724214831440,0.01601706,59519.0,59518.0,0.23706454]
[1724214831841,0.01601706,59519.0,59518.0,0.23306454]
[1724214832057,0.01701706,59519.0,59518.0,0.24006454]
[1724214833058,0.04339198,59519.0,59518.0,0.24006454]
[1724214833912,0.0279947,59519.0,59518.0,0.24006454]
[1724214834130,0.04439143,59519.0,59518.0,0.24006454]
[1724214834763,0.04439143,59519.0,59518.0,0.22759808]
[1724214836825,0.04439143,59519.0,59518.0,0.1774031]
[1724214837038,0.04439143,59519.0,59518.0,0.22759654]
[1724214837900,0.0289947,59519.0,59518.0,0.22759654]
[1724214838185,0.04439149,59519.0,59518.0,0.22759654]
[1724214840494,0.01801657,59519.0,59518.0,0.22759654]
[1724214841183,0.01801657,59519.0,59518.0,0.1774031]
[1724214841383,0.01801657,59519.0,59518.0,0.1123031]
[1724214842135,0.01801657,59519.0,59518.0,0.0309031]
[1724214842851,0.01956676,59519.0,59518.0,0.0309031]
[1724214843988,0.04594147,59519.0,59518.0,0.0309031]
[1724214844827,0.03054468,59519.0,59518.0,0.0309031]
[1724214845052,0.0459418,59519.0,59518.0,0.0309031]
[1724214846702,0.03054468,59519.0,59518.0,0.0309031]
[1724214846911,0.0459418,59519.0,59518.0,0.0309031]
[1724214847730,0.04439161,59519.0,59518.0,0.0309031]
[1724214848779,0.04458269,59519.0,59518.0,0.0309031]
[1724214849038,0.02899449,59519.0,59518.0,0.0309031]
[1724214849247,0.04439146,59519.0,59518.0,0.1734031]
[1724214849451,0.04458254,59519.0,59518.0,0.1734031]
[1724214853480,0.04458254,59519.0,59518.0,0.0309031]
[1724214853998,0.04613273,59519.0,59518.0,0.0309031]
[1724214854330,0.04613273,59519.0,59518.0,0.08111069]
[1724214854772,0.04613273,59519.0,59518.0,0.22291069]
[1724214856142,0.01975802,59519.0,59518.0,0.22291069]
[1724214856359,0.01801675,59519.0,59518.0,0.22291069]
[1724214856540,0.01801675,59519.0,59518.0,0.22519505]
[1724214856890,0.01801648,59519.0,59518.0,0.17498746]
[1724214857107,0.03341318,59519.0,59518.0,0.17498746]
[1724214857311,0.0180165,59519.0,59518.0,0.17498746]
[1724214859401,0.04439112,59519.0,59518.0,0.17498746]
[1724214860948,0.0180165,59519.0,59518.0,0.17498746]
[1724214864085,0.04439111,59519.0,59518.0,0.17498746]
[1724214865333,0.04439116,59519.0,59518.0,0.17498746]
[1724214866806,0.04439116,59519.0,59518.0,0.16702324]
[1724214867419,0.04439116,59519.0,59518.0,0.24236698]
[1724214868229,0.04439116,59519.0,59518.0,0.61536583]
[1724214868683,0.04439116,59519.0,59518.0,0.61538886]
[1724214869093,0.02899439,59519.0,59518.0,0.61538886]
[1724214869298,0.04439116,59519.0,59518.0,0.61538886]
[1724214870316,0.04439116,59519.0,59518.0,0.54002209]
[1724214871675,0.04439116,59519.0,59518.0,0.64051112]
[1724214873076,0.02899439,59519.0,59518.0,0.64051112]
[1724214873307,0.04439116,59519.0,59518.0,0.64051112]
[1724214874341,0.04439116,59519.0,59518.0,0.54002209]
[1724214874657,0.04439116,59519.0,59518.0,0.54092629]
[1724214875408,0.01801655,59519.0,59518.0,0.54092629]
[1724214875811,0.01801655,59519.0,59518.0,0.39912629]
[1724214876089,0.01956674,59519.0,59518.0,0.39684193]
[1724214877093,0.00416997,59519.0,59518.0,0.39684193]
[1724214877237,0.01956676,59519.0,59518.0,0.39684193]
[1724214879679,0.01956676,59519.0,59518.0,0.52245322]
[1724214880088,0.01956676,59519.0,59518.0,0.39684193]
[1724214881136,0.01956676,59519.0,59518.0,0.52245322]
[1724214881342,0.01801657,59519.0,59518.0,0.66055322]
[1724214881549,0.01801657,59519.0,59518.0,0.53494193]
[1724214882582,0.01801657,59519.0,59518.0,0.47334193]
[1724214883413,0.01801657,59519.0,59518.0,0.47332806]
[1724214884467,0.01801586,59519.0,59518.0,0.47332806]
[1724214887884,0.04439027,59519.0,59518.0,0.47332806]
[1724214888417,0.04439027,59519.0,59518.0,0.47332805]
[1724214890389,0.02899419,59519.0,59518.0,0.47332805]
[1724214890590,0.04439032,59519.0,59518.0,0.47332805]
[1724214892579,0.01801591,59519.0,59518.0,0.47332805]
[1724214893395,0.01801591,59519.0,59518.0,0.47332897]
[1724214893886,0.00261978,59519.0,59518.0,0.47332897]
[1724214894106,0.01801591,59519.0,59518.0,0.47332897]
[1724214895104,0.0180159,59519.0,59518.0,0.59900826]
[1724214895514,0.0180159,59519.0,59518.0,0.47332897]
[1724214897174,0.0180159,59519.0,59518.0,0.53892897]
[1724214897607,0.01801476,59519.0,59518.0,0.53892897]
[1724214897780,0.01801476,59519.0,59518.0,1.06107119]
[1724214897984,0.01801476,59519.0,59518.0,1.2118996]
[1724214898394,0.01801476,59519.0,59518.0,0.5389016]
[1724214899015,0.04438725,59519.0,59518.0,0.5389016]
[1724214899833,0.04438703,59519.0,59518.0,0.5389016]
[1724214901557,0.04144511,59519.0,59518.0,0.5389016]
[1724214901751,0.01539476,59519.0,59518.0,0.5389016]
[1724214904376,0.01016024,59519.0,59518.0,0.5389016]
[1724214905153,0.000822,59525.0,59518.0,0.5389016]
[1724214905364,0.000822,59525.0,59524.0,0.07536223]
[1724214905526,0.000822,59525.0,59524.0,0.39824252]
[1724214906133,0.000822,59525.0,59524.0,0.47360063]
[1724214910143,0.000822,59525.0,59524.0,0.47860063]
[1724214910382,0.000822,59525.0,59524.0,0.47360063]
[1724214910615,0.001822,59525.0,59524.0,0.48060063]
[1724214911320,0.002822,59525.0,59524.0,0.47931663]
[1724214911550,0.002822,59525.0,59524.0,0.16955811]
[1724214911778,0.001822,59525.0,59524.0,0.54380113]
[1724214911985,0.002822,59525.0,59524.0,0.54480113]
[1724214912431,0.002822,59525.0,59524.0,0.48160113]
[1724214912645,0.002822,59525.0,59524.0,0.10864214]
[1724214912899,0.002822,59525.0,59524.0,0.47931615]
[1724214915718,0.002822,59525.0,59524.0,0.10635811]
[1724214916105,0.147522,59525.0,59524.0,0.10635811]
[1724214916311,0.16291578,59525.0,59524.0,0.10635811]
[1724214916525,0.14907219,59525.0,59524.0,0.031]
[1724214916765,0.14907219,59525.0,59524.0,0.10633046]
[1724214916991,0.16446602,59525.0,59524.0,0.031]
[1724214917191,0.1646571,59525.0,59524.0,0.008]
[1724214917923,0.20296993,59525.0,59524.0,0.008]
[1724214918394,0.20297157,59525.0,59524.0,0.008]
[1724214921753,0.20142138,59525.0,59524.0,0.008]
[1724214922579,0.20297157,59525.0,59524.0,0.008]
[1724214924841,0.1875761,59525.0,59524.0,0.008]
[1724214925037,0.20297157,59525.0,59524.0,0.008]
[1724214928653,0.1875761,59525.0,59524.0,0.008]
[1724214928864,0.20297159,59525.0,59524.0,0.008]
[1724214938657,0.14157159,59525.0,59524.0,0.008]
[1724214940248,0.05827159,59525.0,59524.0,0.008]
[1724214941150,0.0428761,59525.0,59524.0,0.008]
[1724214941358,0.05827155,59525.0,59524.0,0.008]
[1724214941559,0.11721342,59525.0,59524.0,0.008]
[1724214941837,0.13260887,59525.0,59524.0,0.008]
[1724214942821,0.09409382,59525.0,59524.0,0.008]
[1724214942999,0.03515195,59525.0,59524.0,0.008]
[1724214943784,0.03515195,59525.0,59524.0,0.05822578]
[1724214944588,0.03515094,59525.0,59524.0,0.05822578]
[1724214945972,0.03515094,59525.0,59524.0,0.05823076]
[1724214946816,0.01975549,59525.0,59524.0,0.05823076]
[1724214951116,0.10075549,59525.0,59524.0,0.05823076]
[1724214952745,0.01975549,59525.0,59524.0,0.05823076]
[1724214954106,0.01975549,59525.0,59524.0,0.008]
[1724214954313,0.01975549,59525.0,59524.0,0.05823677]
[1724214956019,0.01975549,59525.0,59524.0,0.05823936]
[1724214956216,0.01975549,59525.0,59524.0,0.05914356]
[1724214958629,0.41438977,59525.0,59524.0,0.0089042]
[1724214958894,0.32143749,59525.0,59524.0,0.0089042]
[1724214959069,0.42143749,59525.0,59524.0,0.0089042]
[1724214959397,0.42143749,59525.0,59524.0,0.0009042]
[1724214959398,0.41584258,59525.0,59524.0,0.0009042]
[1724214959603,0.41584258,59525.0,59524.0,0.0019042]
[1724214959826,0.41584258,59525.0,59524.0,0.0049042]
[1724214960247,0.41584258,59525.0,59524.0,0.0039042]
[1724214960860,0.41584258,59525.0,59524.0,0.0009042]
[1724214961267,0.42384258,59525.0,59524.0,0.0019042]
[1724214961481,0.43184258,59525.0,59524.0,0.0019042]
[1724214961887,0.17204258,59525.0,59524.0,0.0019042]
[1724214963217,0.07204258,59525.0,59524.0,0.0019042]
[1724214963437,0.13079511,59525.0,59524.0,0.0817042]
[1724214963665,0.03201422,59525.0,59524.0,0.2884042]
[1724214963863,0.03201422,59525.0,59524.0,0.29068795]
[1724214964077,0.03201422,59525.0,59524.0,0.78911994]
[1724214964281,0.0320123,59525.0,59524.0,0.82283994]
[1724214964447,0.0160123,59525.0,59524.0,0.82183994]
[1724214964625,0.00061978,59525.0,59524.0,0.82183994]
[1724214964846,0.02101221,59525.0,59524.0,0.82183994]
[1724214965064,0.01901221,59525.0,59524.0,0.82183994]
[1724214965291,0.01901221,59525.0,59524.0,0.69635528]
[1724214965509,0.01701221,59525.0,59524.0,0.70335528]
[1724214965731,0.01701221,59525.0,59524.0,0.69635528]
[1724214965938,0.01801221,59525.0,59524.0,0.69835528]
[1724214966157,0.01901221,59525.0,59524.0,0.70535528]
[1724214966360,0.01901221,59525.0,59524.0,0.80569586]
[1724214968712,0.00361978,59525.0,59524.0,0.80569586]
[1724214968916,0.00361978,59525.0,59524.0,0.80565872]
[1724214969273,0.00361978,59525.0,59524.0,0.70533807]
[1724214969919,1e-08,59525.0,59524.0,0.70533807]
[1724214970119,1e-08,59525.0,59524.0,0.70614699]
[1724214970522,1e-08,59525.0,59524.0,0.70814699]
[1724214971039,1e-08,59525.0,59524.0,0.70714699]
[1724214971259,1e-08,59525.0,59524.0,0.7085968]
[1724214971462,1e-08,59525.0,59524.0,0.70614699]
[1724214971671,1e-08,59525.0,59524.0,0.7085968]
[1724214972420,1e-08,59525.0,59524.0,0.70614699]
[1724214973553,1e-08,59525.0,59524.0,0.70610838]
[1724214973973,1e-08,59525.0,59524.0,0.58561571]
[1724214974202,1e-08,59525.0,59524.0,0.55189571]
[1724214975363,1e-08,59525.0,59524.0,0.62704059]
[1724214975565,1e-08,59525.0,59524.0,0.60404059]
[1724214975777,1e-08,59525.0,59524.0,0.1560042]
[1724214975953,1e-08,59525.0,59524.0,0.20608984]
[1724214976800,1e-08,59525.0,59524.0,0.22908984]
[1724214977027,1e-08,59525.0,59524.0,0.0329042]
[1724214977748,0.01539267,59525.0,59524.0,0.0329042]
[1724214978176,0.01713394,59525.0,59524.0,0.0099042]
[1724214978740,0.01713393,59525.0,59524.0,0.0029042]
[1724214978941,0.01713393,59525.0,59524.0,0.0009042]
[1724214979368,0.01813393,59525.0,59524.0,0.0039042]
[1724214980443,0.01913393,59525.0,59524.0,0.0119042]
[1724214980655,0.01658374,59525.0,59524.0,0.0039042]
[1724214980865,0.01640752,59525.0,59524.0,0.0009042]
[1724214981073,0.01895771,59525.0,59524.0,0.0089042]
[1724214981278,0.01840752,59525.0,59524.0,0.0119042]
[1724214982316,0.08625771,59525.0,59524.0,0.0119042]
[1724214984582,0.07086327,59525.0,59524.0,0.0119042]
[1724214984730,0.08625804,59525.0,59524.0,0.0119042]
[1724214984973,0.08607071,59525.0,59524.0,0.0119042]
[1724214988487,0.07067594,59525.0,59524.0,0.0119042]
[1724214988724,0.08607093,59525.0,59524.0,0.0119042]
[1724214989876,0.16197093,59525.0,59524.0,0.0119042]
[1724214990888,0.19649626,59525.0,59524.0,0.0119042]
[1724214991729,0.25443669,59525.0,59524.0,0.0089042]
[1724214991925,0.25543669,59525.0,59524.0,0.0119042]
[1724214992322,0.19649626,59525.0,59524.0,0.0119042]
[1724214992526,0.25544167,59525.0,59524.0,0.0119042]
[1724214992741,0.25444324,59525.0,59524.0,0.0039042]
[1724214993144,0.25544324,59525.0,59524.0,0.0109042]
[1724214993949,0.14657594,59525.0,59524.0,0.0109042]
[1724214994150,0.1619725,59525.0,59524.0,0.0109042]
[1724214996848,0.20026218,59525.0,59524.0,0.0109042]
[1724214997507,0.19826218,59525.0,59524.0,0.0009042]
[1724214997963,0.19826218,59525.0,59524.0,0.0019042]
[1724214997964,0.21126218,59525.0,59524.0,0.0019042]
[1724214998408,0.23812259,59525.0,59524.0,0.0019042]
[1724214998903,0.24512259,59525.0,59524.0,0.0019042]
[1724214999101,0.20526218,59525.0,59524.0,0.0009042]
[1724214999304,0.21126218,59525.0,59524.0,0.0019042]
[1724215000583,0.34512259,59525.0,59524.0,0.0019042]
[1724215001988,0.34512584,59525.0,59524.0,0.0019042]
[1724215005005,0.34512593,59525.0,59524.0,0.0019042]
[1724215015285,0.32972603,59525.0,59524.0,0.0019042]
[1724215015494,0.34512581,59525.0,59524.0,0.0019042]
[1724215016649,0.3112654,59525.0,59524.0,0.0019042]
[1724215016856,0.31546618,59525.0,59524.0,0.0019042]
[1724215018608,0.1690654,59525.0,59524.0,0.0019042]
[1724215018807,0.0690654,59525.0,59524.0,0.0019042]
[1724215019574,0.06906516,59525.0,59524.0,0.0019042]
[1724215023037,0.0690652,59525.0,59524.0,0.0019042]
[1724215024335,0.24140598,59525.0,59524.0,0.0019042]
[1724215024544,0.31565944,59525.0,59524.0,0.0019042]
[1724215025386,0.31765944,59525.0,59524.0,0.0019042]
[1724215026014,0.31965944,59525.0,59524.0,0.0019042]
[1724215026877,0.34965944,59525.0,59524.0,0.0019042]
[1724215027085,0.39663958,59525.0,59524.0,0.0019042]
[1724215027307,0.39063958,59525.0,59524.0,0.0009042]
[1724215027520,0.37524,59525.0,59524.0,0.0009042]
[1724215027737,0.39064296,59525.0,59524.0,0.0009042]
[1724215027950,0.39064293,59525.0,59524.0,0.0009042]
[1724215028581,0.38364293,59525.0,59524.0,0.0009042]
[1724215028990,0.40764293,59525.0,59524.0,0.0009042]
[1724215029403,0.38364293,59525.0,59524.0,0.0009042]
[1724215029607,0.39464293,59525.0,59524.0,0.0009042]
[1724215029788,0.40664293,59525.0,59524.0,0.0009042]
[1724215031778,0.40664305,59525.0,59524.0,0.0009042]
[1724215034781,0.91063305,59525.0,59524.0,0.0009042]
[1724215035006,0.91737305,59525.0,59524.0,0.0009042]
[1724215038345,0.85905867,59525.0,59524.0,0.0009042]
[1724215038544,0.97745867,59525.0,59524.0,0.0009042]
[1724215039431,0.83545867,59525.0,59524.0,0.0009042]
[1724215040179,0.82005562,59525.0,59524.0,0.0009042]
[1724215040379,0.83045708,59525.0,59524.0,0.0009042]
[1724215040578,0.81505562,59525.0,59524.0,0.0009042]
[1724215040801,0.83045704,59525.0,59524.0,0.0009042]
[1724215041362,0.68305697,59525.0,59524.0,0.0009042]
[1724215041574,0.88473749,59525.0,59524.0,0.0786042]
[1724215041886,0.87233614,59525.0,59524.0,0.0786042]
[1724215044089,0.87233614,59525.0,59524.0,0.0009042]
[1724215044241,0.93553614,59525.0,59524.0,0.0009042]
[1724215044629,0.92013552,59525.0,59524.0,0.0009042]
[1724215044830,0.93553661,59525.0,59524.0,0.0009042]
[1724215044958,0.87033661,59525.0,59524.0,0.0009042]
[1724215045369,0.87233661,59525.0,59524.0,0.0009042]
[1724215045836,0.87433661,59525.0,59524.0,0.0009042]
[1724215046797,0.80545671,59525.0,59524.0,0.0009042]
[1724215047499,0.80545652,59525.0,59524.0,0.0009042]
[1724215053066,0.79005562,59525.0,59524.0,0.0009042]
[1724215053682,0.80545652,59525.0,59524.0,0.0009042]
[1724215057210,0.79005562,59525.0,59524.0,0.0009042]
[1724215057413,0.89108631,59525.0,59524.0,0.0009042]
[1724215059048,1.02978631,59525.0,59524.0,0.0009042]
[1724215059279,1.05978631,59525.0,59524.0,0.0009042]
[1724215061344,1.04438538,59525.0,59524.0,0.0009042]
[1724215061549,1.05978739,59525.0,59524.0,0.0009042]
[1724215064167,1.05978739,59525.0,59519.0,0.0009042]
[1724215064168,0.34945019,59520.0,59519.0,0.0009042]
[1724215064454,1.02453188,59520.0,59519.0,0.0009042]
[1724215064608,1.12253188,59520.0,59519.0,0.0009042]
[1724215064999,0.86423188,59520.0,59519.0,0.0009042]
[1724215065436,0.96622987,59520.0,59519.0,0.0009042]
[1724215065663,0.98163332,59520.0,59519.0,0.0009042]
[1724215066289,1.11879275,59520.0,59519.0,0.0009042]
[1724215066619,1.10479275,59520.0,59519.0,0.0009042]
[1724215066834,0.99563332,59520.0,59519.0,0.0009042]
[1724215067042,1.00603921,59520.0,59519.0,0.0009042]
[1724215067243,1.02003921,59520.0,59519.0,0.0009042]
[1724215073387,1.00463576,59520.0,59519.0,0.0009042]
[1724215073565,1.02003916,59520.0,59519.0,0.0009042]
[1724215073768,1.14703917,59520.0,59519.0,0.0009042]
[1724215075374,1.01803916,59520.0,59519.0,0.1398042]
[1724215075637,0.58723327,59520.0,59519.0,0.1398042]
[1724215075858,0.70463327,59520.0,59519.0,0.1398042]
[1724215076791,0.67663327,59520.0,59519.0,0.1398042]
[1724215076996,0.70463327,59520.0,59519.0,0.1398042]
[1724215077399,0.66122987,59520.0,59519.0,0.1398042]
[1724215077603,0.7846304,59520.0,59519.0,0.1398042]
[1724215077806,0.78463042,59520.0,59519.0,0.1398042]
[1724215078762,0.79363042,59520.0,59519.0,0.1398042]
[1724215081004,0.77822987,59520.0,59519.0,0.1398042]
[1724215081207,0.7936302,59520.0,59519.0,0.1398042]
[1724215084182,0.87307542,59520.0,59519.0,0.1398042]
[1724215085746,0.7936302,59520.0,59519.0,0.1398042]
[1724215088699,0.7936302,59520.0,59502.0,0.05024998]
[1724215088931,0.1174,59513.0,59503.0,0.023]
[1724215089156,0.01540033,59512.0,59503.0,0.023]
[1724215089378,0.00155019,59504.0,59503.0,0.023]
[1724215089896,0.00155019,59504.0,59502.0,0.023]
[1724215090120,0.01540033,59503.0,59502.0,0.023]
[1724215090360,0.01540033,59504.0,59502.0,0.023]
[1724215090576,0.01540033,59503.0,59502.0,0.023]
[1724215090797,0.01540033,59504.0,59502.0,0.023]
[1724215091030,0.01640042,59504.0,59503.0,0.001]
[1724215091261,0.01640042,59504.0,59503.0,0.37306566]
[1724215091262,0.01540042,59504.0,59503.0,0.37306566]
[1724215091497,0.01540042,59504.0,59503.0,0.022]
[1724215091722,0.01640042,59504.0,59503.0,0.15128732]
[1724215093129,0.01740042,59504.0,59503.0,0.15128732]
[1724215093567,0.01640042,59504.0,59503.0,0.17428732]
[1724215093785,0.01740042,59504.0,59503.0,0.17528732]
[1724215094218,0.01740042,59504.0,59503.0,0.173]
[1724215094669,0.01895061,59504.0,59503.0,0.173]
[1724215094921,0.01895061,59504.0,59503.0,0.15]
[1724215096240,0.01895074,59504.0,59503.0,0.15]
[1724215097082,0.01795074,59504.0,59503.0,0.149]
[1724215097284,0.01795074,59504.0,59503.0,0.152]
[1724215097493,0.01795074,59504.0,59503.0,0.151]
[1724215097706,0.01695074,59504.0,59503.0,0.149]
[1724215097922,0.01795074,59504.0,59503.0,0.152]
[1724215098131,0.01795074,59504.0,59503.0,0.1519042]
[1724215098548,0.01795074,59504.0,59503.0,0.1529042]
[1724215100186,0.00255019,59504.0,59503.0,0.1529042]
[1724215100387,0.01795097,59504.0,59503.0,0.1529042]
[1724215100597,0.00255019,59504.0,59503.0,0.1529042]
[1724215100799,0.01795153,59504.0,59503.0,0.1529042]
[1724215103819,0.017951,59504.0,59503.0,0.1529042]
[1724215104276,0.01795098,59504.0,59503.0,0.1529042]
[1724215105560,0.01795098,59504.0,59503.0,0.0049042]
[1724215105561,0.13535098,59504.0,59503.0,0.0049042]
[1724215105774,0.01795098,59504.0,59503.0,0.0049042]
[1724215108437,0.0179512,59504.0,59503.0,0.0049042]
[1724215109895,0.00255019,59504.0,59503.0,0.0049042]
[1724215110125,0.01795127,59504.0,59503.0,0.0049042]
[1724215110551,0.01877327,59504.0,59503.0,0.0049042]
[1724215111237,0.01722308,59504.0,59503.0,0.0049042]
[1724215111473,0.13617327,59504.0,59503.0,0.0049042]
[1724215112625,0.01877327,59504.0,59503.0,0.0813042]
[1724215113253,0.11607101,59504.0,59503.0,0.0813042]
[1724215114950,0.11607618,59504.0,59503.0,0.0813042]
[1724215115791,0.11587391,59504.0,59503.0,0.0813042]
[1724215116210,0.11587391,59504.0,59503.0,0.1465042]
[1724215116636,0.01702205,59504.0,59503.0,0.2869042]
[1724215117056,0.01702205,59504.0,59503.0,0.33714711]
[1724215117491,0.01702205,59504.0,59503.0,0.33614711]
[1724215117919,0.01802205,59504.0,59503.0,0.33714711]
[1724215118562,0.01802205,59504.0,59503.0,0.21974711]
[1724215118977,0.01722432,59504.0,59503.0,0.21674711]
[1724215119186,0.01722432,59504.0,59503.0,0.21674463]
[1724215119401,0.01822432,59504.0,59503.0,0.22374463]
[1724215120287,0.01822262,59504.0,59503.0,0.1735042]
[1724215121377,0.01822262,59504.0,59503.0,0.24886484]
[1724215123974,0.01822262,59504.0,59503.0,0.1735042]
[1724215124190,0.01822262,59504.0,59503.0,0.24891341]
[1724215124604,0.01822266,59504.0,59503.0,0.24891341]
[1724215125262,0.01822266,59504.0,59503.0,0.62200952]
[1724215125468,0.002822,59504.0,59503.0,0.62200952]
[1724215125691,0.01822258,59504.0,59503.0,0.62200952]
[1724215128112,0.01822258,59504.0,59503.0,0.54660031]
[1724215128335,0.01822258,59504.0,59503.0,0.64714593]
[1724215128538,0.01822258,59504.0,59503.0,0.54660031]
[1724215128956,0.01822258,59504.0,59503.0,0.54659245]
[1724215129857,0.01822258,59504.0,59503.0,0.66399245]
[1724215130100,0.05895821,59518.0,59503.0,1.04564443]
[1724215130314,0.01539665,59517.0,59515.0,0.05025536]
[1724215130523,0.00155019,59520.0,59516.0,0.19415536]
[1724215130735,0.01539663,59519.0,59516.0,0.19415536]
[1724215130958,0.01539663,59518.0,59516.0,0.19415536]
[1724215131194,0.01539663,59517.0,59516.0,0.19315536]
[1724215131425,0.01539663,59517.0,59516.0,0.1429]
[1724215131671,0.01539663,59517.0,59516.0,0.14518587]
[1724215131908,0.01539663,59517.0,59516.0,0.1429]
[1724215132370,0.00155019,59518.0,59516.0,0.1429]
[1724215132594,0.0169468,59517.0,59516.0,0.1429]
[1724215133503,0.0179468,59517.0,59516.0,0.1429]
[1724215134726,0.00155019,59513.0,59512.0,0.13059641]
[1724215134957,0.00155019,59511.0,59510.0,0.05019641]
[1724215135198,0.00155019,59510.0,59509.0,0.05019641]
[1724215135431,0.00155019,59510.0,59504.0,0.0804]
[1724215135432,0.00155019,59504.0,59503.0,0.05110061]
[1724215135679,0.0169468,59504.0,59503.0,0.0009042]
[1724215136846,0.0179468,59504.0,59503.0,0.01251101]
[1724215137130,0.0189468,59504.0,59503.0,0.02651101]
[1724215137369,0.00155019,59502.0,59501.0,0.05110061]
[1724215137599,0.01540031,59502.0,59501.0,0.05110061]
[1724215137866,0.01540031,59502.0,59501.0,0.12920061]
[1724215138103,0.01540031,59502.0,59501.0,0.0790042]
[1724215139271,0.01640031,59502.0,59501.0,0.0900042]
[1724215139499,0.01740031,59502.0,59501.0,0.1000042]
[1724215139742,0.01740031,59502.0,59501.0,0.61478285]
[1724215139987,0.01540031,59502.0,59501.0,0.59378285]
[1724215140220,0.001,59502.0,59501.0,0.47338823]
[1724215140421,0.002,59502.0,59501.0,0.58578106]
[1724215140917,0.002,59502.0,59501.0,0.66218106]
[1724215141621,0.001,59502.0,59501.0,0.65018106]
[1724215141800,0.001,59502.0,59501.0,0.66318106]
[1724215142055,0.002,59502.0,59501.0,0.56278823]
[1724215142249,0.00155019,59505.0,59501.0,0.53978823]
[1724215142512,0.01539957,59504.0,59503.0,0.04820986]
[1724215142719,0.01539957,59504.0,59503.0,0.07120986]
[1724215143336,0.00155019,59505.0,59503.0,0.07120986]
[1724215143337,0.00155019,59505.0,59503.0,0.39605872]
[1724215143550,0.00155019,59510.0,59504.0,0.39605872]
[1724215143758,0.001,59505.0,59504.0,0.12339283]
[1724215143970,0.001,59505.0,59504.0,0.57463897]
[1724215145040,0.00155019,59510.0,59504.0,0.57463897]
[1724215145254,0.01539811,59509.0,59505.0,0.44634146]
[1724215145489,0.00155019,59510.0,59506.0,0.023]
[1724215145702,0.01539811,59509.0,59506.0,0.023]
[1724215145922,0.01539811,59508.0,59505.0,0.07529532]
[1724215146134,0.01539811,59507.0,59505.0,0.07429532]
[1724215146336,0.01539811,59506.0,59505.0,0.07429532]
[1724215146539,0.01539811,59506.0,59505.0,0.009]
[1724215146750,0.01539811,59506.0,59504.0,0.17859299]
[1724215146963,0.00155019,59510.0,59504.0,0.17859299]
[1724215147222,0.01539811,59509.0,59504.0,0.17859299]
[1724215147437,0.01539811,59508.0,59506.0,0.008]
[1724215147647,0.0169483,59507.0,59506.0,0.008]
[1724215148080,0.17180313,59507.0,59506.0,0.008]
[1724215148286,0.1617483,59507.0,59506.0,0.017]
[1724215148504,0.1617483,59507.0,59506.0,0.008]
[1724215148684,0.00155019,59504.0,59503.0,0.0009042]
[1724215149858,0.00255019,59504.0,59503.0,0.0149042]
[1724215150065,0.00255019,59504.0,59503.0,0.0289042]
[1724215153016,0.001,59504.0,59503.0,0.0289042]
[1724215153221,0.00155019,59506.0,59503.0,0.0289042]
[1724215153441,0.00075239,59510.0,59503.0,0.1735042]
[1724215153653,0.00115883,59510.0,59503.0,0.1735042]
[1724215153862,0.00115883,59506.0,59503.0,0.1735042]
[1724215154066,0.00115883,59506.0,59503.0,0.22371338]
[1724215154883,0.00115883,59504.0,59503.0,0.20971338]
[1724215155108,0.00115883,59504.0,59503.0,0.13051338]
[1724215155333,0.00115883,59504.0,59503.0,0.15051338]
[1724215155540,0.00115883,59504.0,59503.0,0.14251338]
[1724215155968,0.00115883,59504.0,59503.0,0.14351338]
[1724215156181,0.00215883,59504.0,59503.0,0.15751338]
[1724215156394,0.00215883,59504.0,59503.0,0.14451094]
[1724215156606,0.00315883,59504.0,59503.0,0.15851094]
[1724215158366,0.00315883,59504.0,59503.0,0.07911094]
[1724215158579,0.00024494,59504.0,59503.0,0.07911094]
[1724215159202,0.00024494,59504.0,59503.0,0.0289042]
[1724215159887,0.00106694,59504.0,59503.0,0.0289042]
[1724215160761,0.01646584,59504.0,59503.0,0.0289042]
[1724215161007,0.01646596,59504.0,59503.0,0.0289042]
[1724215161952,0.01646609,59504.0,59503.0,0.0289042]
[1724215163662,0.01646681,59504.0,59503.0,0.0289042]
[1724215165230,0.01646681,59504.0,59503.0,0.0791405]
[1724215165435,0.01646681,59504.0,59503.0,0.0289042]
[1724215165643,0.01646681,59504.0,59503.0,0.10425865]
[1724215166930,0.01646681,59504.0,59503.0,0.47733147]
[1724215167141,0.01646681,59504.0,59503.0,0.10425865]
[1724215167355,0.01646681,59504.0,59503.0,0.0289042]
[1724215167543,0.01646681,59504.0,59503.0,0.07912755]
[1724215168033,0.01646681,59504.0,59503.0,0.0289042]
[1724215168244,0.01646681,59504.0,59503.0,0.07912752]
[1724215168462,0.01646681,59504.0,59503.0,0.0289042]
[1724215168696,0.01646681,59504.0,59503.0,0.1667042]